[Event "Live Chess"]
[Site "Chess.com"]
[Date "2024.06.01"]
[Round "-"]
[White "FlyingChessKestrel13"]
[Black "MagnersCarlsberg2870"]
[Result "1-0"]
[WhiteElo "2099"]
[BlackElo "1886"]
[TimeControl "300"]
[EndTime "10:15:13 PDT"]
[Termination "FlyingChessKestrel13 won by resignation"]

1. e4 {[%clk 0:04:57.8]} 1... d6 {[%clk 0:04:58.4]} 2. d4 {[%clk 0:04:56.4]}
2... Nf6 {[%clk 0:04:57.5]} 3. Nc3 {[%clk 0:04:55.8]} 3... Nbd7 {[%clk
0:04:56.3]} 4. Be3 {[%clk 0:04:54.4]} 4... e5 {[%clk 0:04:55.2]} 5. f3 {[%clk
0:04:52.1]} 5... c6 {[%clk 0:04:52.5]} 6. Nge2 {[%clk 0:04:50.8]} 6... h6 {[%clk
0:04:51.5]} 7. Nc1 {[%clk 0:04:48.9]} 7... Be7 {[%clk 0:04:50.1]} 8. Nb3 {[%clk
0:04:47.3]} 8... Qc7 {[%clk 0:04:48.9]} 9. Be2 {[%clk 0:04:44.6]} 9... a6 {[%clk
0:04:44.4]} 10. O-O {[%clk 0:04:41.3]} 10... g5 {[%clk 0:04:43.5]} 11. d5 {[%clk
0:04:36.5]} 11... c5 {[%clk 0:04:41.7]} 12. a4 {[%clk 0:04:34]} 12... Nf8 {[%clk
0:04:40.1]} 13. a5 {[%clk 0:04:32.5]} 13... Ng6 {[%clk 0:04:38.6]} 14. Na4
{[%clk 0:04:29.7]} 14... Nf4 {[%clk 0:04:33.3]} 15. Nb6 {[%clk 0:04:27.9]} 15...
Rb8 {[%clk 0:04:30.5]} 16. Nc4 {[%clk 0:04:12.7]} 16... h5 {[%clk 0:04:27.7]}
17. Nxc5 {[%clk 0:04:08.3]} 17... g4 {[%clk 0:04:15]} 18. Bxf4 {[%clk
0:04:03.7]} 18... gxf3 {[%clk 0:04:12]} 19. Nd3 {[%clk 0:03:50]} 19... fxe2
{[%clk 0:04:09.6]} 20. Qxe2 {[%clk 0:03:47.1]} 20... Qxc4 {[%clk 0:04:08]} 21.
Bg5 {[%clk 0:03:45]} 21... Nxe4 {[%clk 0:03:55.6]} 22. Bxe7 {[%clk 0:03:43.7]}
22... Kxe7 {[%clk 0:03:54.8]} 23. Qf3 {[%clk 0:03:39.9]} 23... Rf8 {[%clk
0:03:24.8]} 24. Rae1 {[%clk 0:03:34.4]} 24... Nd2 {[%clk 0:03:20.4]} 25. Qf6+
{[%clk 0:03:32.4]} 25... Kd7 {[%clk 0:03:10.9]} 26. Rf2 {[%clk 0:03:12.1]} 26...
Ne4 {[%clk 0:03:07.2]} 27. Qf5+ {[%clk 0:03:08.8]} 27... Kc7 {[%clk 0:03:01.9]}
28. Qxe4 {[%clk 0:03:03.9]} 28... Qxe4 {[%clk 0:03:01.1]} 29. Rxe4 {[%clk
0:03:03]} 29... f5 {[%clk 0:03:00.5]} 30. Rc4+ {[%clk 0:03:01.5]} 30... Kd8
{[%clk 0:02:57.2]} 31. Rh4 {[%clk 0:02:59.7]} 31... Rh8 {[%clk 0:02:50.4]} 32.
h3 {[%clk 0:02:55.8]} 32... Bd7 {[%clk 0:02:49.2]} 33. c4 {[%clk 0:02:49]} 33...
Rc8 {[%clk 0:02:48.1]} 34. c5 {[%clk 0:02:48.1]} 34... e4 {[%clk 0:02:38.8]} 35.
Nf4 {[%clk 0:02:43.8]} 35... Rxc5 {[%clk 0:02:37.5]} 36. b4 {[%clk 0:02:38.1]}
36... Rc1+ {[%clk 0:02:34.8]} 37. Kh2 {[%clk 0:02:36.8]} 37... Rb1 {[%clk
0:02:25.6]} 38. Ne6+ {[%clk 0:02:25.6]} 38... Bxe6 {[%clk 0:02:24.3]} 39. dxe6
{[%clk 0:02:25.5]} 39... Ke7 {[%clk 0:02:23.6]} 40. Rxf5 {[%clk 0:02:24.3]}
40... Kxe6 {[%clk 0:02:22.1]} 41. Rfxh5 {[%clk 0:02:19.3]} 41... Rxh5 {[%clk
0:02:21.1]} 42. Rxh5 {[%clk 0:02:18.5]} 42... Rxb4 {[%clk 0:02:20.1]} 43. Kg3
{[%clk 0:02:16.4]} 43... Rb5 {[%clk 0:02:16.4]} 44. Rh7 {[%clk 0:02:08.6]} 44...
Rf5 {[%clk 0:02:12.7]} 45. Rxb7 {[%clk 0:02:05]} 45... e3 {[%clk 0:02:11.2]} 46.
Rb3 {[%clk 0:02:02.4]} 46... Re5 {[%clk 0:02:01.6]} 47. Kf3 {[%clk 0:02:00.8]}
47... e2 {[%clk 0:01:59.5]} 48. Rb1 {[%clk 0:01:52.7]} 48... Rxa5 {[%clk
0:01:50.8]} 49. Kxe2 {[%clk 0:01:43.7]} 49... Ra2+ {[%clk 0:01:49.3]} 50. Kf3
{[%clk 0:01:42.6]} 50... d5 {[%clk 0:01:48.5]} 51. h4 {[%clk 0:01:39.2]} 51...
d4 {[%clk 0:01:46.2]} 52. h5 {[%clk 0:01:37.6]} 52... Kf7 {[%clk 0:01:42.2]} 53.
g4 {[%clk 0:01:34.2]} 53... d3 {[%clk 0:01:40.4]} 54. Rd1 {[%clk 0:01:32.3]}
54... d2 {[%clk 0:01:38.6]} 55. Ke2 {[%clk 0:01:31.3]} 55... Ra4 {[%clk
0:01:37.2]} 56. g5 {[%clk 0:01:28.2]} 56... Ra5 {[%clk 0:01:30.5]} 57. Rg1
{[%clk 0:01:25.3]} 57... Rd5 {[%clk 0:01:25.5]} 58. Kd1 {[%clk 0:01:15.2]} 58...
a5 {[%clk 0:01:24.5]} 59. g6+ {[%clk 0:01:09]} 59... Kg7 {[%clk 0:01:15.9]} 60.
h6+ {[%clk 0:01:07.6]} 60... Kg8 {[%clk 0:01:12]} 61. g7 {[%clk 0:01:06]} 61...
Rh5 {[%clk 0:01:09.3]} 62. Rg6 {[%clk 0:01:01.9]} 62... a4 {[%clk 0:00:58.7]}
63. Rf6 {[%clk 0:00:57.7]} 63... Rg5 {[%clk 0:00:55.2]} 64. Rf8+ {[%clk
0:00:52.4]} 64... Kh7 {[%clk 0:00:54.1]} 65. Rh8+ {[%clk 0:00:51.9]} 65... Kg6
{[%clk 0:00:50.9]} 66. g8=Q+ {[%clk 0:00:51.3]} 66... Kh5 {[%clk 0:00:49.2]} 1-0

[Event "Live Chess"]
[Site "Chess.com"]
[Date "2024.06.01"]
[Round "-"]
[White "RuslanChessN"]
[Black "McFim"]
[Result "0-1"]
[WhiteElo "1965"]
[BlackElo "1587"]
[TimeControl "300"]
[EndTime "10:15:20 PDT"]
[Termination "McFim won by resignation"]

1. d4 {[%clk 0:04:57.3]} 1... d6 {[%clk 0:04:54.3]} 2. c4 {[%clk 0:04:55.7]}
2... g6 {[%clk 0:04:52.8]} 3. e4 {[%clk 0:04:52.9]} 3... Bg7 {[%clk 0:04:52.2]}
4. f4 {[%clk 0:04:52.4]} 4... c5 {[%clk 0:04:49.9]} 5. d5 {[%clk 0:04:50.4]}
5... Nf6 {[%clk 0:04:47.5]} 6. Nc3 {[%clk 0:04:48.7]} 6... O-O {[%clk
0:04:44.1]} 7. Bd3 {[%clk 0:04:46.3]} 7... a6 {[%clk 0:04:30.4]} 8. a4 {[%clk
0:04:40.8]} 8... Ne8 {[%clk 0:04:27.3]} 9. Nf3 {[%clk 0:04:37.9]} 9... e6 {[%clk
0:04:26.1]} 10. O-O {[%clk 0:04:34.8]} 10... exd5 {[%clk 0:04:24.8]} 11. exd5
{[%clk 0:04:33.5]} 11... Nd7 {[%clk 0:04:18]} 12. Qc2 {[%clk 0:04:31.9]} 12...
Ndf6 {[%clk 0:03:48.3]} 13. Bd2 {[%clk 0:04:29.5]} 13... Nc7 {[%clk 0:03:46.4]}
14. Rae1 {[%clk 0:04:27.1]} 14... Bd7 {[%clk 0:03:40.8]} 15. f5 {[%clk
0:04:22.7]} 15... b5 {[%clk 0:03:31]} 16. Bg5 {[%clk 0:04:17.7]} 16... h6 {[%clk
0:03:27.7]} 17. Bxf6 {[%clk 0:04:08.2]} 17... Qxf6 {[%clk 0:03:19.8]} 18. fxg6
{[%clk 0:04:04.6]} 18... fxg6 {[%clk 0:03:16.1]} 19. Ne5 {[%clk 0:03:43.6]}
19... Qxf1+ {[%clk 0:03:03.1]} 20. Bxf1 {[%clk 0:03:34.6]} 20... Bf5 {[%clk
0:02:55.9]} 21. Bd3 {[%clk 0:03:23.1]} 21... Bxe5 {[%clk 0:02:53.1]} 22. Bxf5
{[%clk 0:03:20.2]} 22... Rxf5 {[%clk 0:02:51.5]} 23. g4 {[%clk 0:03:02.6]} 23...
Rf6 {[%clk 0:02:46.6]} 24. Ne4 {[%clk 0:03:01]} 24... Bd4+ {[%clk 0:02:23.4]}
25. Kg2 {[%clk 0:02:55.3]} 25... Rf4 {[%clk 0:02:22.5]} 26. h3 {[%clk
0:02:53.1]} 26... Kg7 {[%clk 0:02:15]} 27. Re2 {[%clk 0:02:31.3]} 27... Be5
{[%clk 0:02:09.8]} 28. Nxc5 {[%clk 0:02:20.4]} 28... bxc4 {[%clk 0:02:05.2]} 29.
Nd7 {[%clk 0:01:56.6]} 29... Nxd5 {[%clk 0:01:54.3]} 30. Nxe5 {[%clk 0:01:51.3]}
30... dxe5 {[%clk 0:01:53.1]} 31. Rxe5 {[%clk 0:01:49.7]} 31... Rd8 {[%clk
0:01:49.7]} 32. Re6 {[%clk 0:01:45.1]} 32... Rf6 {[%clk 0:01:44.5]} 33. Rxf6
{[%clk 0:01:40.3]} 33... Ne3+ {[%clk 0:01:41.4]} 34. Kf3 {[%clk 0:01:34.6]}
34... Nxc2 {[%clk 0:01:40]} 35. Rxa6 {[%clk 0:01:33.7]} 35... Rb8 {[%clk
0:01:34.3]} 36. Rc6 {[%clk 0:01:27.6]} 36... Nd4+ {[%clk 0:01:30]} 0-1

[Event "Live Chess"]
[Site "Chess.com"]
[Date "2024.06.01"]
[Round "-"]
[White "Pedrada88"]
[Black "Isambard_Thomas"]
[Result "1/2-1/2"]
[WhiteElo "2545"]
[BlackElo "2144"]
[TimeControl "300"]
[EndTime "10:15:31 PDT"]
[Termination "Game drawn by repetition"]

1. e4 {[%clk 0:04:58.5]} 1... Nc6 {[%clk 0:04:58.2]} 2. Nf3 {[%clk 0:04:57.8]}
2... d5 {[%clk 0:04:57.4]} 3. exd5 {[%clk 0:04:56.9]} 3... Qxd5 {[%clk
0:04:57.3]} 4. Nc3 {[%clk 0:04:56.6]} 4... Qh5 {[%clk 0:04:56.1]} 5. Be2 {[%clk
0:04:55.8]} 5... Bg4 {[%clk 0:04:55.4]} 6. h3 {[%clk 0:04:54.5]} 6... Nf6 {[%clk
0:04:54.3]} 7. d3 {[%clk 0:04:53.4]} 7... e6 {[%clk 0:04:52.4]} 8. Bf4 {[%clk
0:04:52.8]} 8... O-O-O {[%clk 0:04:49]} 9. Qd2 {[%clk 0:04:50.9]} 9... Bb4
{[%clk 0:04:46.7]} 10. O-O-O {[%clk 0:04:48.9]} 10... Bxf3 {[%clk 0:04:45.6]}
11. Bxf3 {[%clk 0:04:48.1]} 11... Qa5 {[%clk 0:04:45.2]} 12. a3 {[%clk
0:04:46.1]} 12... Bxa3 {[%clk 0:04:41.3]} 13. bxa3 {[%clk 0:04:44.8]} 13...
Qxa3+ {[%clk 0:04:40.5]} 14. Kb1 {[%clk 0:04:44.3]} 14... Rd4 {[%clk 0:03:39]}
15. Na2 {[%clk 0:04:42.6]} 15... Nb4 {[%clk 0:03:30.6]} 16. c3 {[%clk
0:04:11.7]} 16... Nxa2 {[%clk 0:03:28.9]} 17. cxd4 {[%clk 0:04:07.6]} 17... Qb3+
{[%clk 0:03:23.1]} 18. Qb2 {[%clk 0:04:03.3]} 18... Nc3+ {[%clk 0:03:16.6]} 19.
Kc1 {[%clk 0:04:01.3]} 19... Na2+ {[%clk 0:03:13.9]} 20. Kb1 {[%clk 0:03:59.8]}
20... Nc3+ {[%clk 0:03:13]} 21. Kc1 {[%clk 0:03:59]} 21... Na2+ {[%clk
0:03:12.1]} 22. Kb1 {[%clk 0:03:55.1]} 1/2-1/2

[Event "Live Chess"]
[Site "Chess.com"]
[Date "2024.06.01"]
[Round "-"]
[White "CarmelJane"]
[Black "akp42"]
[Result "0-1"]
[WhiteElo "2104"]
[BlackElo "2011"]
[TimeControl "300"]
[EndTime "10:15:32 PDT"]
[Termination "akp42 won by checkmate"]

1. e4 {[%clk 0:04:56.2]} 1... e6 {[%clk 0:04:58.9]} 2. d4 {[%clk 0:04:54.9]}
2... d5 {[%clk 0:04:58.5]} 3. Nd2 {[%clk 0:04:54.2]} 3... Be7 {[%clk 0:04:57]}
4. e5 {[%clk 0:04:50]} 4... c5 {[%clk 0:04:54.5]} 5. c3 {[%clk 0:04:49.3]} 5...
Nc6 {[%clk 0:04:53.8]} 6. f4 {[%clk 0:04:46.4]} 6... f6 {[%clk 0:04:49.2]} 7.
Ndf3 {[%clk 0:04:44.3]} 7... fxe5 {[%clk 0:04:46]} 8. fxe5 {[%clk 0:04:44.2]}
8... Kd7 {[%clk 0:04:38.8]} 9. Be3 {[%clk 0:04:11.4]} 9... c4 {[%clk 0:04:35.9]}
10. Nh3 {[%clk 0:04:02.5]} 10... Nh6 {[%clk 0:04:33]} 11. Be2 {[%clk 0:03:47.5]}
11... Nf5 {[%clk 0:04:31]} 12. Bd2 {[%clk 0:03:45.3]} 12... Kc7 {[%clk
0:04:23.2]} 13. O-O {[%clk 0:03:43.8]} 13... Bd7 {[%clk 0:04:22]} 14. b3 {[%clk
0:03:42.3]} 14... Na5 {[%clk 0:04:03.7]} 15. bxc4 {[%clk 0:03:38.6]} 15... Nxc4
{[%clk 0:04:02.6]} 16. Bxc4 {[%clk 0:03:37]} 16... dxc4 {[%clk 0:04:01.6]} 17.
Qe2 {[%clk 0:03:28]} 17... b5 {[%clk 0:03:59.6]} 18. a4 {[%clk 0:03:25.6]} 18...
a6 {[%clk 0:03:25.6]} 19. axb5 {[%clk 0:03:13.8]} 19... axb5 {[%clk 0:03:24.1]}
20. Nf4 {[%clk 0:03:12.3]} 20... g5 {[%clk 0:03:18.5]} 21. d5 {[%clk 0:02:48.4]}
21... gxf4 {[%clk 0:03:11.3]} 22. d6+ {[%clk 0:02:47.5]} 22... Nxd6 {[%clk
0:03:02.4]} 23. exd6+ {[%clk 0:02:47.4]} 23... Bxd6 {[%clk 0:03:01.4]} 24. Nd4
{[%clk 0:02:45]} 24... e5 {[%clk 0:02:52.2]} 25. Nf3 {[%clk 0:02:43.2]} 25...
Qf6 {[%clk 0:02:42.5]} 26. Be1 {[%clk 0:02:34.5]} 26... Bc6 {[%clk 0:02:29.5]}
27. Bh4 {[%clk 0:02:32.2]} 27... Qf5 {[%clk 0:02:24.4]} 28. Rfe1 {[%clk
0:02:15]} 28... Rxa1 {[%clk 0:02:08.7]} 29. Rxa1 {[%clk 0:02:14.9]} 29... Bc5+
{[%clk 0:01:54.2]} 30. Bf2 {[%clk 0:02:12.3]} 30... Bxf2+ {[%clk 0:01:49.6]} 31.
Qxf2 {[%clk 0:02:12.2]} 31... Qe4 {[%clk 0:01:18.4]} 32. Ra7+ {[%clk 0:02:05.8]}
32... Kd6 {[%clk 0:01:17.2]} 33. Rf7 {[%clk 0:01:37.4]} 33... Qb1+ {[%clk
0:01:13]} 34. Ne1 {[%clk 0:01:36.9]} 34... Qg6 {[%clk 0:00:52.6]} 35. Qd2+
{[%clk 0:01:30.6]} 35... Ke6 {[%clk 0:00:40.7]} 36. Rc7 {[%clk 0:01:29.7]} 36...
Qe4 {[%clk 0:00:34.5]} 37. Nf3 {[%clk 0:01:18]} 37... Rg8 {[%clk 0:00:24.7]} 38.
Kf2 {[%clk 0:01:06.6]} 38... Rxg2+ {[%clk 0:00:18.7]} 39. Kxg2 {[%clk
0:01:06.5]} 39... Qxf3+ {[%clk 0:00:17.8]} 40. Kg1 {[%clk 0:00:58.7]} 40... Qh1+
{[%clk 0:00:15]} 41. Kf2 {[%clk 0:00:58.2]} 41... Qxh2+ {[%clk 0:00:09.6]} 42.
Ke1 {[%clk 0:00:57.2]} 42... Qg1+ {[%clk 0:00:07.7]} 43. Ke2 {[%clk 0:00:55.8]}
43... f3# {[%clk 0:00:01.7]} 0-1

[Event "Live Chess"]
[Site "Chess.com"]
[Date "2024.06.01"]
[Round "-"]
[White "Rusty_Bridges"]
[Black "IanCalvert2"]
[Result "1-0"]
[WhiteElo "1566"]
[BlackElo "1491"]
[TimeControl "300"]
[EndTime "10:15:37 PDT"]
[Termination "Rusty_Bridges won on time"]

1. e4 {[%clk 0:04:57.5]} 1... d5 {[%clk 0:04:58.7]} 2. exd5 {[%clk 0:04:55.4]}
2... Qxd5 {[%clk 0:04:57.4]} 3. Nc3 {[%clk 0:04:53.1]} 3... Qd6 {[%clk 0:04:55]}
4. d4 {[%clk 0:04:52.1]} 4... Nf6 {[%clk 0:04:54]} 5. Nf3 {[%clk 0:04:51.1]}
5... a6 {[%clk 0:04:52.5]} 6. Bc4 {[%clk 0:04:50.1]} 6... b5 {[%clk 0:04:35.5]}
7. Bxf7+ {[%clk 0:04:47.8]} 7... Kxf7 {[%clk 0:04:33.4]} 8. Ne5+ {[%clk
0:04:47]} 8... Ke8 {[%clk 0:04:24.2]} 9. Qf3 {[%clk 0:04:40.9]} 9... c6 {[%clk
0:04:21]} 10. O-O {[%clk 0:04:27.9]} 10... Bb7 {[%clk 0:04:14.4]} 11. Re1 {[%clk
0:04:22.2]} 11... Nbd7 {[%clk 0:04:01.6]} 12. Bg5 {[%clk 0:04:10.6]} 12... b4
{[%clk 0:03:37.2]} 13. Na4 {[%clk 0:03:43.2]} 13... Nxe5 {[%clk 0:03:25.4]} 14.
dxe5 {[%clk 0:03:38.7]} 14... Qd5 {[%clk 0:03:24.3]} 15. Qxd5 {[%clk 0:03:21.5]}
15... Nxd5 {[%clk 0:03:20.4]} 16. c4 {[%clk 0:03:05]} 16... bxc3 {[%clk
0:03:14.8]} 17. bxc3 {[%clk 0:03:02.7]} 17... h6 {[%clk 0:03:02.7]} 18. Bh4
{[%clk 0:02:58.3]} 18... g5 {[%clk 0:03:00.8]} 19. Bg3 {[%clk 0:02:54.9]} 19...
Nf4 {[%clk 0:02:59.5]} 20. Nb6 {[%clk 0:02:49]} 20... Rd8 {[%clk 0:02:48.3]} 21.
e6 {[%clk 0:02:42.1]} 21... Bg7 {[%clk 0:02:37.3]} 22. Rac1 {[%clk 0:02:30.5]}
22... Rd6 {[%clk 0:02:22.9]} 23. c4 {[%clk 0:02:17.4]} 23... Rxe6 {[%clk
0:02:11.7]} 24. Rxe6 {[%clk 0:01:34]} 24... Nxe6 {[%clk 0:02:08.9]} 25. Rd1
{[%clk 0:01:23.3]} 25... Bd4 {[%clk 0:01:57.4]} 26. Na4 {[%clk 0:01:12.3]} 26...
Kf7 {[%clk 0:01:50.5]} 27. Kf1 {[%clk 0:01:04.8]} 27... c5 {[%clk 0:01:39.7]}
28. Nb6 {[%clk 0:01:01]} 28... Nf4 {[%clk 0:01:24.1]} 29. f3 {[%clk 0:00:52.1]}
29... e6 {[%clk 0:01:06.7]} 30. Bf2 {[%clk 0:00:50.2]} 30... Rd8 {[%clk
0:00:58.5]} 31. Bxd4 {[%clk 0:00:37.2]} 31... Rxd4 {[%clk 0:00:55.8]} 32. Re1
{[%clk 0:00:33]} 32... Nd3 {[%clk 0:00:49.5]} 33. Re2 {[%clk 0:00:29.8]} 33...
Nc1 {[%clk 0:00:45]} 34. Re1 {[%clk 0:00:28.2]} 34... Nxa2 {[%clk 0:00:43.6]}
35. Ra1 {[%clk 0:00:16.3]} 35... Nc3 {[%clk 0:00:41.3]} 36. Rc1 {[%clk
0:00:15.4]} 36... Rd1+ {[%clk 0:00:39.8]} 37. Rxd1 {[%clk 0:00:14.2]} 37... Nxd1
{[%clk 0:00:38.5]} 38. Ke2 {[%clk 0:00:14.1]} 38... Nb2 {[%clk 0:00:36.8]} 39.
Kd2 {[%clk 0:00:11.9]} 39... a5 {[%clk 0:00:35.9]} 40. Kc3 {[%clk 0:00:11.1]}
40... Nd1+ {[%clk 0:00:30.4]} 41. Kd2 {[%clk 0:00:09.6]} 41... Nf2 {[%clk
0:00:27]} 42. Kc3 {[%clk 0:00:08.6]} 42... Kf6 {[%clk 0:00:23.5]} 43. Kb3 {[%clk
0:00:07.9]} 43... Ke5 {[%clk 0:00:21.7]} 44. Ka4 {[%clk 0:00:07.8]} 44... Kd4
{[%clk 0:00:20.1]} 45. Kxa5 {[%clk 0:00:07]} 45... Bc6 {[%clk 0:00:18.2]} 46.
Nc8 {[%clk 0:00:04.5]} 46... Nd1 {[%clk 0:00:13.5]} 47. Ne7 {[%clk 0:00:04.4]}
47... Nc3 {[%clk 0:00:12.1]} 48. Nxc6+ {[%clk 0:00:03.9]} 48... Kxc4 {[%clk
0:00:08.3]} 49. Ne7 {[%clk 0:00:03.8]} 49... Nd5 {[%clk 0:00:05.9]} 50. Ng6
{[%clk 0:00:03.7]} 50... Kd3 {[%clk 0:00:04.7]} 51. Ne5+ {[%clk 0:00:02.9]}
51... Kd4 {[%clk 0:00:02.4]} 52. Kb5 {[%clk 0:00:02.2]} 52... c4 {[%clk
0:00:01.6]} 53. Nxc4 {[%clk 0:00:00.9]} 1-0

[Event "Live Chess"]
[Site "Chess.com"]
[Date "2024.06.01"]
[Round "-"]
[White "viktor_forever1994"]
[Black "PaulHumphreys"]
[Result "0-1"]
[WhiteElo "1393"]
[BlackElo "1374"]
[TimeControl "300"]
[EndTime "10:15:46 PDT"]
[Termination "PaulHumphreys won by checkmate"]

1. e4 {[%clk 0:04:58.7]} 1... e6 {[%clk 0:04:57.5]} 2. Nf3 {[%clk 0:04:58.6]}
2... d5 {[%clk 0:04:54.7]} 3. d4 {[%clk 0:04:58.5]} 3... dxe4 {[%clk 0:04:49.7]}
4. Ng1 {[%clk 0:04:57.9]} 4... Nf6 {[%clk 0:04:46.9]} 5. a3 {[%clk 0:04:56.8]}
5... c5 {[%clk 0:04:44.1]} 6. Be3 {[%clk 0:04:51.6]} 6... Nc6 {[%clk 0:04:41.5]}
7. c3 {[%clk 0:04:47.6]} 7... cxd4 {[%clk 0:04:35.8]} 8. Bxd4 {[%clk 0:04:41.2]}
8... Nxd4 {[%clk 0:04:34]} 9. Qxd4 {[%clk 0:04:38.1]} 9... Qxd4 {[%clk
0:04:32.6]} 10. cxd4 {[%clk 0:04:38]} 10... Bd7 {[%clk 0:04:24.7]} 11. Nd2
{[%clk 0:04:35.8]} 11... Rc8 {[%clk 0:04:21]} 12. Ne2 {[%clk 0:04:21.8]} 12...
Be7 {[%clk 0:04:18.4]} 13. Nc3 {[%clk 0:04:20.5]} 13... Bc6 {[%clk 0:04:09.7]}
14. Bb5 {[%clk 0:04:08]} 14... O-O {[%clk 0:04:00.1]} 15. Bxc6 {[%clk
0:03:59.6]} 15... Rxc6 {[%clk 0:03:55.6]} 16. Ndxe4 {[%clk 0:03:58]} 16... Nxe4
{[%clk 0:03:53.5]} 17. Nxe4 {[%clk 0:03:57.9]} 17... Rc2 {[%clk 0:03:51.4]} 18.
b4 {[%clk 0:03:49.1]} 18... Rfc8 {[%clk 0:03:45]} 19. O-O {[%clk 0:03:47.2]}
19... R2c4 {[%clk 0:03:37.5]} 20. Rfd1 {[%clk 0:03:40.8]} 20... Rd8 {[%clk
0:03:29.8]} 21. g3 {[%clk 0:02:59.7]} 21... Rcxd4 {[%clk 0:03:26.6]} 22. Rxd4
{[%clk 0:02:47.8]} 22... Rxd4 {[%clk 0:03:24]} 23. Nc3 {[%clk 0:02:33]} 23...
Bf6 {[%clk 0:03:18.5]} 24. Rc1 {[%clk 0:02:25.2]} 24... Rc4 {[%clk 0:03:01.8]}
25. Ne2 {[%clk 0:02:12.7]} 25... Rxc1+ {[%clk 0:02:59.5]} 26. Nxc1 {[%clk
0:02:12.6]} 26... Bb2 {[%clk 0:02:58.8]} 27. Nd3 {[%clk 0:02:03.5]} 27... Bxa3
{[%clk 0:02:57.5]} 28. Kf1 {[%clk 0:02:01.9]} 28... Kf8 {[%clk 0:02:56]} 29. Ke2
{[%clk 0:02:01.2]} 29... Ke7 {[%clk 0:02:55]} 30. Ke3 {[%clk 0:02:00.4]} 30...
b6 {[%clk 0:02:43.9]} 31. Ke4 {[%clk 0:01:58.8]} 31... f6 {[%clk 0:02:41.3]} 32.
Kd4 {[%clk 0:01:56.3]} 32... Kd6 {[%clk 0:02:36.7]} 33. Kc4 {[%clk 0:01:54.8]}
33... a5 {[%clk 0:02:24.4]} 34. Kb3 {[%clk 0:01:29]} 34... axb4 {[%clk
0:02:15.4]} 35. Nxb4 {[%clk 0:01:26.7]} 35... Bxb4 {[%clk 0:02:14.1]} 36. Kxb4
{[%clk 0:01:26.6]} 36... Kc6 {[%clk 0:02:11]} 37. Kc4 {[%clk 0:01:24.9]} 37...
g5 {[%clk 0:02:08.4]} 38. f3 {[%clk 0:01:23.6]} 38... h5 {[%clk 0:02:06.2]} 39.
h3 {[%clk 0:01:22]} 39... f5 {[%clk 0:02:03.7]} 40. g4 {[%clk 0:01:15.5]} 40...
hxg4 {[%clk 0:01:52.7]} 41. hxg4 {[%clk 0:01:15.4]} 41... fxg4 {[%clk
0:01:47.3]} 42. fxg4 {[%clk 0:01:15.3]} 42... b5+ {[%clk 0:01:44.5]} 43. Kb4
{[%clk 0:01:13.9]} 43... e5 {[%clk 0:01:42.3]} 44. Kc3 {[%clk 0:01:12.4]} 44...
Kd5 {[%clk 0:01:40.3]} 45. Kd3 {[%clk 0:01:11.2]} 45... b4 {[%clk 0:01:38.8]}
46. Ke3 {[%clk 0:01:09.9]} 46... b3 {[%clk 0:01:37.3]} 47. Kd2 {[%clk
0:01:09.8]} 47... Kd4 {[%clk 0:01:35]} 48. Kc1 {[%clk 0:01:08.7]} 48... Kd3
{[%clk 0:01:33.6]} 49. Kb2 {[%clk 0:01:08.6]} 49... Kc4 {[%clk 0:01:31.8]} 50.
Kc1 {[%clk 0:01:07.6]} 50... e4 {[%clk 0:01:31.2]} 51. Kb2 {[%clk 0:01:06.5]}
51... e3 {[%clk 0:01:30.2]} 52. Ka1 {[%clk 0:01:04.2]} 52... e2 {[%clk
0:01:29.1]} 53. Kb2 {[%clk 0:01:03.2]} 53... e1=Q {[%clk 0:01:22.5]} 54. Ka3
{[%clk 0:00:59]} 54... Qa1# {[%clk 0:01:19.4]} 0-1

[Event "Live Chess"]
[Site "Chess.com"]
[Date "2024.06.01"]
[Round "-"]
[White "SirGerhard"]
[Black "Cruiseylee78"]
[Result "1-0"]
[WhiteElo "2771"]
[BlackElo "1652"]
[TimeControl "300"]
[EndTime "10:16:15 PDT"]
[Termination "SirGerhard won by checkmate"]

1. e4 {[%clk 0:04:58.2]} 1... d6 {[%clk 0:04:55.8]} 2. d4 {[%clk 0:04:57.1]}
2... Nd7 {[%clk 0:04:54.3]} 3. Nc3 {[%clk 0:04:56.5]} 3... e5 {[%clk 0:04:53.5]}
4. Nf3 {[%clk 0:04:55.6]} 4... h6 {[%clk 0:04:52.3]} 5. h4 {[%clk 0:04:53.2]}
5... c6 {[%clk 0:04:51.5]} 6. g3 {[%clk 0:04:50.6]} 6... Ngf6 {[%clk 0:04:49.8]}
7. Bg2 {[%clk 0:04:50.1]} 7... Be7 {[%clk 0:04:49]} 8. O-O {[%clk 0:04:49.5]}
8... Qc7 {[%clk 0:04:48]} 9. a4 {[%clk 0:04:48.6]} 9... Rg8 {[%clk 0:04:45.2]}
10. a5 {[%clk 0:04:47]} 10... Ng4 {[%clk 0:04:38]} 11. a6 {[%clk 0:04:42.4]}
11... g5 {[%clk 0:04:37.1]} 12. hxg5 {[%clk 0:04:39.3]} 12... hxg5 {[%clk
0:04:32.6]} 13. axb7 {[%clk 0:04:38.5]} 13... Bxb7 {[%clk 0:04:31.2]} 14. Nxg5
{[%clk 0:04:31.5]} 14... Bxg5 {[%clk 0:04:26]} 15. Qxg4 {[%clk 0:04:30.7]} 15...
O-O-O {[%clk 0:04:23.4]} 16. Bxg5 {[%clk 0:04:25.3]} 16... f6 {[%clk 0:04:21.8]}
17. Rxa7 {[%clk 0:04:21.7]} 17... Rxg5 {[%clk 0:04:17.4]} 18. Qe6 {[%clk
0:04:20.8]} 18... Qb6 {[%clk 0:04:03.7]} 19. Rfa1 {[%clk 0:04:06.4]} 19... Qxd4
{[%clk 0:03:54.5]} 20. Qb3 {[%clk 0:03:55.8]} 20... Nb6 {[%clk 0:03:46.4]} 21.
Ne2 {[%clk 0:03:42.6]} 21... Qc5 {[%clk 0:03:38]} 22. R1a5 {[%clk 0:03:40.6]}
22... Qc4 {[%clk 0:03:28.7]} 23. Qxb6 {[%clk 0:03:38.3]} 23... Rd7 {[%clk
0:03:24.2]} 24. Ra8+ {[%clk 0:03:36.5]} 24... Bxa8 {[%clk 0:03:18.3]} 25. Rxa8#
{[%clk 0:03:35.7]} 1-0